bitfinex/quotes_BTCUSD_20250123
["timestamp","ask_amount","ask_price","bid_price","bid_amount"]
[1737625715172,1.03662713,101920.0,101910.0,0.00039666]
[1737625715410,1.14755292,101920.0,101910.0,0.00039666]
[1737625715639,1.03662713,101920.0,101910.0,0.00039666]
[1737625718403,0.98662713,101920.0,101910.0,0.00039666]
[1737625718619,0.424925,101910.0,101900.0,0.01029904]
[1737625718841,0.91447116,101910.0,101900.0,0.01034902]
[1737625719285,0.91957305,101910.0,101900.0,0.01034902]
[1737625720442,0.89657305,101910.0,101900.0,0.01034902]
[1737625720665,0.78376079,101900.0,101890.0,0.03155459]
[1737625720896,0.78376079,101900.0,101890.0,0.03170265]
[1737625720897,0.88110808,101900.0,101890.0,0.03170265]
[1737625721156,0.97845537,101900.0,101890.0,0.03170265]
[1737625721623,0.25907079,101890.0,101880.0,0.0001425]
[1737625721860,0.43231808,101890.0,101880.0,0.00019284]
[1737625722645,0.48061808,101890.0,101880.0,0.00019284]
[1737625725219,0.63061808,101890.0,101880.0,0.00019284]
[1737625725408,0.66787914,101890.0,101880.0,0.00019284]
[1737625728863,0.35,101880.0,101870.0,0.0102265]
[1737625729043,0.35,101880.0,101870.0,5.031e-05]
[1737625729044,1.14834759,101880.0,101870.0,5.031e-05]
[1737625729195,1.12305287,101880.0,101870.0,5.031e-05]
[1737625730683,1.13205287,101880.0,101870.0,0.00105031]
[1737625730880,1.26190814,101880.0,101870.0,0.00205031]
[1737625731284,1.26190814,101880.0,101870.0,3.1e-07]
[1737625731481,1.27446016,101880.0,101870.0,3.1e-07]
[1737625732106,1.2944574,101880.0,101870.0,3.1e-07]
[1737625734017,1.31905149,101880.0,101870.0,3.1e-07]
[1737625734221,1.2944574,101880.0,101870.0,3.1e-07]
[1737625735643,1.31905149,101880.0,101870.0,3.1e-07]
[1737625735888,1.31905149,101880.0,101870.0,8.1e-07]
[1737625736040,1.2944574,101880.0,101870.0,8.1e-07]
[1737625736241,1.31905149,101880.0,101870.0,8.1e-07]
[1737625736750,1.2944574,101880.0,101870.0,8.1e-07]
[1737625738014,1.38228508,101880.0,101870.0,8.1e-07]
[1737625738217,1.35928508,101880.0,101870.0,8.1e-07]
[1737625739506,1.36438476,101880.0,101870.0,8.1e-07]
[1737625747354,1.38738476,101880.0,101870.0,8.1e-07]
[1737625747650,1.38768401,101880.0,101870.0,8.1e-07]
[1737625750019,1.41074225,101880.0,101870.0,8.1e-07]
[1737625752861,0.49089879,101860.0,101850.0,6e-05]
[1737625753087,0.67660466,101860.0,101850.0,0.00020844]
[1737625754367,0.67760466,101860.0,101850.0,0.00020844]
[1737625755921,0.72470466,101860.0,101850.0,0.00020844]
[1737625756893,0.67470466,101860.0,101850.0,0.00020844]
[1737625757178,0.72470466,101860.0,101850.0,0.00020844]
[1737625757653,0.82470466,101860.0,101850.0,0.00020844]
[1737625759345,0.8438608,101860.0,101850.0,0.00020844]
[1737625760109,0.8438608,101860.0,101850.0,0.00035094]
[1737625760329,0.85370788,101860.0,101850.0,0.00035094]
[1737625760895,0.52732351,101860.0,101850.0,0.00035094]
[1737625761112,0.44552351,101860.0,101850.0,0.00035094]
[1737625761315,0.5564493,101860.0,101850.0,0.00035094]
[1737625763029,0.6187493,101860.0,101850.0,0.00035094]
[1737625766539,0.6652493,101860.0,101850.0,0.00035094]
[1737625766737,0.76259659,101860.0,101850.0,0.00035094]
[1737625766982,0.85042427,101860.0,101850.0,0.00035094]
[1737625768679,0.85552193,101860.0,101850.0,0.00035094]
[1737625770043,0.80552193,101860.0,101850.0,0.00035094]
[1737625771444,0.76769425,101860.0,101850.0,0.00035094]
[1737625771604,0.71769425,101860.0,101850.0,0.00035094]
[1737625776654,0.76769425,101860.0,101850.0,0.00035094]
[1737625776865,0.71769425,101860.0,101850.0,0.00035094]
[1737625778360,0.76769425,101860.0,101850.0,0.00035094]
[1737625786017,0.86769425,101860.0,101850.0,0.00035094]
[1737625788610,0.82119425,101860.0,101850.0,0.00035094]
[1737625789839,0.64154696,101860.0,101850.0,0.13195094]
[1737625790084,0.54154696,101860.0,101850.0,0.00035094]
[1737625790325,0.56154696,101860.0,101850.0,0.00035094]
[1737625790574,0.51154696,101860.0,101850.0,0.00035094]
[1737625790868,0.60889425,101860.0,101850.0,0.00035094]
[1737625791117,0.60789425,101860.0,101850.0,0.00035094]
[1737625792236,0.65789425,101860.0,101850.0,0.00035094]
[1737625792472,0.65889425,101860.0,101850.0,0.00035094]
[1737625793457,0.60889425,101860.0,101850.0,0.00035094]
[1737625793906,0.57088311,101860.0,101850.0,0.00035094]
[1737625794281,0.22077409,101860.0,101850.0,0.00035094]
[1737625794499,0.22077409,101860.0,101850.0,0.07885094]
[1737625794924,0.22077409,101860.0,101850.0,0.12445094]
[1737625796933,0.20161795,101860.0,101850.0,0.12445094]
[1737625797142,0.301,101860.0,101850.0,0.22263394]
[1737625797351,0.399173,101860.0,101850.0,0.22263394]
[1737625797557,0.301,101860.0,101850.0,0.22263394]
[1737625797969,0.301,101860.0,101850.0,0.23387394]
[1737625798173,0.001,101860.0,101850.0,0.3449587]
[1737625798594,0.001,101860.0,101850.0,0.38546115]
[1737625798801,0.001,101860.0,101850.0,0.23387394]
[1737625798802,0.08843087,101860.0,101850.0,0.23387394]
[1737625799234,0.08743087,101860.0,101850.0,0.23387394]
[1737625799779,0.08843087,101860.0,101850.0,0.23387394]
[1737625801283,0.28395116,101860.0,101850.0,0.12445094]
[1737625801491,0.3016093,101860.0,101850.0,0.12445094]
[1737625801702,0.3016093,101860.0,101850.0,0.13581094]
[1737625802136,0.3016093,101860.0,101850.0,0.05731094]
[1737625802565,0.3016093,101860.0,101850.0,0.04595094]
[1737625803210,0.21417843,101860.0,101850.0,0.04595094]
[1737625803424,0.21417843,101860.0,101850.0,0.00035094]
[1737625804310,0.19652029,101860.0,101850.0,0.00035094]
[1737625805703,0.30760505,101860.0,101850.0,0.00035094]
[1737625805913,0.32760505,101860.0,101850.0,0.00035094]
[1737625806077,0.21652029,101860.0,101850.0,0.00035094]
[1737625807324,0.32760505,101860.0,101850.0,0.00035094]
[1737625807538,0.42495234,101860.0,101850.0,0.00035094]
[1737625807743,0.33308828,101860.0,101850.0,0.00035094]
[1737625808795,0.40938828,101860.0,101850.0,0.00035094]
[1737625809005,0.69627304,101860.0,101850.0,0.00035094]
[1737625809222,0.71627304,101860.0,101850.0,0.00035094]
[1737625809451,0.56916954,101860.0,101850.0,0.00035094]
[1737625810082,0.56816954,101860.0,101850.0,0.00035094]
[1737625810335,0.54816954,101860.0,101850.0,0.00035094]
[1737625810517,0.56816954,101860.0,101850.0,0.00035094]
[1737625811054,0.6792543,101860.0,101850.0,0.00035094]
[1737625815466,0.56816954,101860.0,101850.0,0.00035094]
[1737625816833,0.6792543,101860.0,101850.0,0.00035094]
[1737625817033,0.6592543,101860.0,101850.0,0.00035094]
[1737625817663,0.6792543,101860.0,101850.0,0.00035094]
[1737625817866,0.6592543,101860.0,101850.0,0.00035094]
[1737625818067,0.6792543,101860.0,101850.0,0.00035094]
[1737625819301,0.6592543,101860.0,101850.0,0.00035094]
[1737625820172,0.71435601,101860.0,101850.0,0.00035094]
[1737625820348,0.68435601,101860.0,101850.0,0.00035094]
[1737625820551,0.71435601,101860.0,101850.0,0.00035094]
[1737625821300,0.80178688,101860.0,101850.0,0.00035094]
[1737625823176,0.75178688,101860.0,101850.0,0.00035094]
[1737625823410,0.82178688,101860.0,101850.0,0.00035094]
[1737625823656,0.80178688,101860.0,101850.0,0.00035094]
[1737625824397,0.89935252,101850.0,101840.0,0.00056378]
[1737625824622,1.1927471,101850.0,101840.0,0.00106834]
[1737625825292,0.8927471,101850.0,101840.0,0.00106834]
[1737625825505,0.7927471,101850.0,101840.0,0.00106834]
[1737625825715,0.8157471,101850.0,101840.0,0.00106834]
[1737625826347,0.33907776,101840.0,101830.0,1e-08]
[1737625826597,0.72288611,101840.0,101830.0,9.869e-05]
[1737625830794,0.74297047,101840.0,101830.0,9.869e-05]
[1737625831491,0.51245191,101840.0,101830.0,9.869e-05]
[1737625831707,0.41234367,101840.0,101830.0,9.869e-05]
[1737625831956,0.52342843,101840.0,101830.0,9.869e-05]
[1737625832196,0.398202,101830.0,101820.0,0.046691]
[1737625832441,0.49554929,101830.0,101820.0,0.04684225]
[1737625832934,0.77663405,101830.0,101820.0,0.00015125]
[1737625833651,0.66554929,101830.0,101820.0,0.00015125]
[1737625834088,0.64554929,101830.0,101820.0,0.00015125]
[1737625834906,0.77663405,101830.0,101820.0,0.00015125]
[1737625835043,0.66554929,101830.0,101820.0,0.00015125]
[1737625835263,0.76289658,101830.0,101820.0,0.00015125]
[1737625836180,0.64554929,101830.0,101820.0,0.00015125]
[1737625836384,0.49554929,101830.0,101820.0,0.00015125]
[1737625837745,0.77663405,101830.0,101820.0,0.00015125]
[1737625838130,0.85403405,101830.0,101820.0,0.00015125]
[1737625838331,0.88223405,101830.0,101820.0,0.00015125]
[1737625838477,1.12958134,101830.0,101820.0,0.00015125]
[1737625840247,1.07958134,101830.0,101820.0,0.00015125]
[1737625840458,1.13468199,101830.0,101820.0,0.00015125]
[1737625841078,1.13468199,101830.0,101820.0,0.00029375]
[1737625841276,1.13498124,101830.0,101820.0,0.00029375]
[1737625843755,0.44834919,101830.0,101820.0,0.00029375]
[1737625844173,0.55943395,101830.0,101820.0,0.00029375]
[1737625844798,0.48203395,101830.0,101820.0,0.00029375]
[1737625845013,0.37094919,101830.0,101820.0,0.00029375]
[1737625845454,0.48203395,101830.0,101820.0,0.00029375]
[1737625845668,0.57938124,101830.0,101820.0,0.00029375]
[1737625848966,0.78298124,101830.0,101820.0,0.00029375]
[1737625849180,0.83298124,101830.0,101820.0,0.00029375]
[1737625849791,0.85298124,101830.0,101820.0,0.00029375]
[1737625850206,0.83298124,101830.0,101820.0,0.00029375]
[1737625850441,0.70298124,101830.0,101820.0,0.00029375]
[1737625850682,0.65608124,101830.0,101820.0,0.00029375]
[1737625852256,0.3,101800.0,101790.0,0.32185515]
[1737625852459,0.3,101800.0,101790.0,0.32190544]
[1737625853544,0.398231,101800.0,101790.0,0.02720044]
[1737625853761,0.45666305,101800.0,101790.0,5.029e-05]
[1737625853978,0.55406305,101800.0,101790.0,5.029e-05]
[1737625854231,0.58406305,101800.0,101790.0,5.029e-05]
[1737625854640,0.3,101760.0,101750.0,0.55590176]
[1737625854881,0.3,101760.0,101750.0,0.40590176]
[1737625855093,0.3,101760.0,101750.0,0.56869281]
[1737625855223,0.3,101760.0,101750.0,0.62949281]
[1737625856720,0.3,101760.0,101750.0,0.62945281]
[1737625857108,0.3,101760.0,101750.0,0.51836805]
[1737625857456,0.594789,101770.0,101750.0,0.42009705]
[1737625857655,0.69213629,101770.0,101760.0,0.09827]
[1737625857864,0.69213629,101770.0,101750.0,0.71492005]
[1737625858057,0.88866629,101770.0,101750.0,0.71492005]
[1737625858448,0.88866629,101770.0,101750.0,0.51664805]
[1737625858646,0.88866629,101770.0,101750.0,0.71320705]
[1737625859302,0.88866629,101770.0,101750.0,0.71319805]
[1737625859543,0.39213629,101770.0,101760.0,0.09827]
[1737625859718,0.39734729,101770.0,101760.0,0.09827]
[1737625859914,0.49560729,101770.0,101760.0,0.09827]
[1737625860395,0.39826,101770.0,101760.0,0.09827]
[1737625860598,0.3,101770.0,101760.0,0.09827]
[1737625860835,0.3,101770.0,101750.0,0.81147205]
[1737625861053,0.39826,101770.0,101760.0,0.09827]
[1737625861417,0.3,101770.0,101760.0,0.09827]
[1737625861801,0.39826,101770.0,101760.0,0.09827]
[1737625863849,0.3,101770.0,101760.0,0.09827]
[1737625864047,0.30079016,101770.0,101760.0,0.09827]
[1737625865272,0.30108962,101770.0,101760.0,0.09827]
[1737625865510,0.00108962,101770.0,101760.0,0.38235476]
[1737625865727,0.00108962,101770.0,101760.0,0.38277]
[1737625867553,0.00108962,101770.0,101760.0,0.39521]
[1737625868234,0.00108962,101770.0,101760.0,0.73476681]
[1737625869362,0.00108962,101770.0,101760.0,0.74472108]
[1737625870565,0.00108962,101770.0,101760.0,0.63363632]
[1737625870774,0.00108962,101770.0,101760.0,0.74472108]
[1737625872641,0.00108962,101770.0,101760.0,0.52815632]
[1737625872870,0.00108962,101770.0,101760.0,0.59083632]
[1737625873086,0.00108962,101770.0,101760.0,0.56383632]
[1737625873289,0.00108962,101770.0,101760.0,0.72492108]
[1737625873497,0.00108962,101770.0,101760.0,0.74496108]
[1737625874280,0.00108962,101770.0,101760.0,0.73224108]
[1737625874516,0.00108962,101770.0,101760.0,0.74492108]
[1737625875539,0.00108962,101770.0,101760.0,0.72492108]
[1737625875985,0.00108962,101770.0,101760.0,0.23194903]
[1737625876187,0.00108962,101770.0,101760.0,0.30494903]
[1737625876410,0.00108962,101770.0,101760.0,0.45494903]
[1737625876614,0.00108962,101770.0,101760.0,0.30494903]
[1737625877032,0.00108962,101770.0,101760.0,0.45494903]
[1737625879923,0.00108962,101770.0,101760.0,0.40494903]
[1737625880130,0.00108962,101770.0,101760.0,0.45494903]
[1737625880329,0.00108962,101770.0,101760.0,0.40494903]
[1737625880575,0.00108962,101770.0,101760.0,0.45494903]
[1737625882044,0.00108962,101770.0,101760.0,0.44230903]
[1737625882269,0.00108962,101770.0,101760.0,0.45490903]
[1737625884529,0.00108962,101770.0,101760.0,0.73084108]
[1737625884722,0.00108962,101770.0,101760.0,0.74336108]
[1737625884936,6.2e-07,101770.0,101760.0,0.74336108]
[1737625888298,6.2e-07,101770.0,101760.0,0.73126108]
[1737625888839,6.2e-07,101770.0,101760.0,0.74336108]
[1737625889889,6.2e-07,101770.0,101760.0,0.41930903]
[1737625890122,6.2e-07,101770.0,101760.0,0.27070427]
[1737625890345,6.2e-07,101770.0,101760.0,0.12070427]
[1737625890933,0.37956062,101780.0,101760.0,0.13351903]
[1737625891128,0.37956062,101780.0,101770.0,0.09826]
[1737625891534,0.37956062,101780.0,101770.0,0.11082]
[1737625892006,0.07956062,101780.0,101770.0,0.28382]
[1737625892260,0.07956062,101780.0,101770.0,0.39490476]
[1737625892470,0.07956062,101780.0,101770.0,0.28382]
[1737625893443,0.07956062,101780.0,101770.0,0.39490476]
[1737625894483,0.07956062,101780.0,101770.0,0.28382]
[1737625894818,0.17690791,101780.0,101770.0,0.26082]
[1737625895045,0.47690791,101780.0,101770.0,0.26082]
[1737625895295,0.47690791,101780.0,101770.0,0.24826]
[1737625895457,0.47690791,101780.0,101770.0,0.2607]
[1737625895892,0.37956062,101780.0,101770.0,0.2607]
[1737625899083,0.42526062,101780.0,101770.0,0.24826]
[1737625899315,0.42556008,101780.0,101770.0,0.26058]
[1737625899812,0.0766,101770.0,101760.0,0.2949296]
[1737625900010,0.17394729,101770.0,101760.0,0.4449296]
[1737625901762,0.17394729,101770.0,101760.0,0.4571696]
[1737625904788,0.27220729,101770.0,101760.0,0.4571696]
[1737625905330,0.27220729,101770.0,101760.0,0.0123826]
[1737625905331,0.31980729,101770.0,101760.0,0.0123826]
[1737625906559,0.31980729,101770.0,101760.0,0.1106526]
[1737625906792,0.31980729,101770.0,101760.0,0.0984126]
[1737625909633,0.31980729,101770.0,101760.0,0.0001426]
[1737625909863,0.41077097,101770.0,101760.0,0.0001426]
[1737625910550,0.41077097,101770.0,101760.0,0.0984126]
[1737625910551,0.31980729,101770.0,101760.0,0.0984126]
[1737625910984,0.31980729,101770.0,101760.0,0.0001426]
[1737625911219,0.31980729,101770.0,101760.0,0.0984126]
[1737625914755,0.31980729,101770.0,101760.0,0.1102526]
[1737625915458,0.31980729,101770.0,101760.0,0.0001426]
[1737625915691,0.41715458,101770.0,101760.0,0.0001426]
[1737625916145,0.31980729,101770.0,101760.0,0.0001426]
[1737625916325,0.31980729,101770.0,101760.0,0.0984126]
[1737625918549,0.31980729,101770.0,101760.0,0.0001426]
[1737625919480,0.24537,101760.0,101740.0,0.0001425]
[1737625919682,0.43381205,101750.0,101740.0,0.0002939]
[1737625919827,1.01859681,101750.0,101740.0,0.0001514]
[1737625920070,0.575389,101740.0,101730.0,0.0001424]
[1737625920261,0.32273629,101740.0,101730.0,0.00064746]
[1737625920465,0.45382105,101740.0,101730.0,0.00064746]
[1737625920675,0.51228732,101740.0,101730.0,0.00064746]
[1737625920838,0.43382105,101740.0,101730.0,0.00064746]
[1737625922103,0.22444729,101740.0,101730.0,0.09894646]
[1737625922452,0.17474729,101740.0,101730.0,0.09894646]
[1737625924960,0.47474729,101740.0,101730.0,0.09894646]
[1737625926843,0.57303629,101740.0,101730.0,0.01260746]
[1737625927045,0.75065529,101740.0,101730.0,0.00064746]
[1737625927262,0.68412105,101740.0,101730.0,0.00064746]
[1737625927380,0.73072105,101740.0,101730.0,0.00064746]
[1737625928028,0.31963629,101740.0,101730.0,0.00064746]
[1737625928277,0.43072105,101740.0,101730.0,0.00064746]
[1737625928926,0.76180581,101740.0,101730.0,0.00064746]
[1737625929248,0.118347,101680.0,101670.0,0.00110069]
[1737625929572,0.38757905,101680.0,101670.0,0.00110069]
[1737625930259,0.27649429,101680.0,101670.0,0.00110069]
[1737625930485,0.27649429,101680.0,101670.0,0.09945769]
[1737625930664,0.27659271,101680.0,101670.0,0.09945769]
[1737625931297,0.43497747,101680.0,101670.0,0.00110069]
[1737625932516,0.45497747,101680.0,101670.0,0.00110069]
[1737625935161,0.45497747,101680.0,101670.0,0.00124329]
[1737625935957,0.32389271,101680.0,101670.0,0.00124329]
[1737625936310,0.17824571,101680.0,101670.0,0.09960029]
[1737625936520,0.19579271,101680.0,101670.0,0.09960029]
[1737625936704,0.09744571,101680.0,101670.0,0.09960029]
[1737625937675,0.19579271,101680.0,101670.0,0.09960029]
[1737625937892,0.3,101670.0,101660.0,0.346721]
[1737625938110,0.3,101670.0,101660.0,0.445088]
[1737625938676,0.3,101670.0,101660.0,0.457968]
[1737625938962,0.3,101670.0,101660.0,0.458008]
[1737625939242,0.39734729,101670.0,101660.0,0.458008]
[1737625939455,0.39734729,101670.0,101660.0,0.458248]
[1737625940680,0.3,101670.0,101660.0,0.458248]
[1737625942573,0.3,101670.0,101660.0,0.445088]
[1737625942826,0.3,101670.0,101660.0,0.458288]
[1737625943231,0.30009842,101680.0,101670.0,0.15]
[1737625943432,0.30009842,101680.0,101670.0,0.248357]
[1737625946747,9.842e-05,101680.0,101670.0,0.248357]
[1737625947516,9.842e-05,101680.0,101670.0,0.35944176]
[1737625947719,0.00039788,101680.0,101670.0,0.35944176]
[1737625948157,0.00039788,101680.0,101670.0,0.40944176]
[1737625948385,0.00039788,101680.0,101670.0,0.52978905]
[1737625949149,8.8e-07,101680.0,101670.0,0.73477381]
[1737625949389,8.8e-07,101680.0,101670.0,0.61672905]
[1737625949639,8.8e-07,101680.0,101670.0,0.63672905]
[1737625949878,8.8e-07,101680.0,101670.0,0.74781381]
[1737625950136,8.8e-07,101680.0,101670.0,0.63672905]
[1737625950360,8.8e-07,101680.0,101670.0,0.74781381]
[1737625950888,8.8e-07,101680.0,101670.0,0.69781381]
[1737625951134,8.8e-07,101680.0,101670.0,0.62368905]
[1737625951369,8.8e-07,101680.0,101670.0,0.63668905]
[1737625951774,0.42584233,101720.0,101680.0,0.05]
[1737625951996,0.09734729,101710.0,101700.0,0.294962]
[1737625955321,0.3,101710.0,101700.0,0.19664]
[1737625955527,0.3,101710.0,101700.0,0.294968]
[1737625956652,0.3,101710.0,101700.0,0.40605276]
[1737625956876,0.3,101710.0,101700.0,0.55605276]
[1737625957115,0.3,101710.0,101700.0,0.56885276]
[1737625958403,0.3808,101730.0,101720.0,0.098309]
[1737625959617,0.38089928,101730.0,101720.0,0.098309]
[1737625963591,0.30009928,101730.0,101720.0,0.22211376]
[1737625964184,0.30009928,101730.0,101720.0,0.112529]
[1737625964551,0.27534557,101730.0,101720.0,0.0015]
[1737625964749,0.17704657,101730.0,101720.0,0.099809]
[1737625965395,0.27534557,101730.0,101720.0,0.099809]
[1737625966020,0.17704657,101730.0,101720.0,0.099809]
[1737625966642,0.27315791,101730.0,101720.0,0.099809]
[1737625966785,0.26932832,101730.0,101720.0,0.099809]
[1737625967002,0.26932832,101730.0,101720.0,0.08907947]
[1737625967239,0.17102932,101730.0,101720.0,0.08907947]
[1737625967441,0.26932832,101730.0,101720.0,0.08907947]
[1737625967638,0.17102932,101730.0,101720.0,0.08907947]
[1737625967933,0.26932832,101730.0,101720.0,0.08907947]
[1737625968338,0.3,101720.0,101710.0,0.30757]
[1737625971943,0.3,101710.0,101700.0,0.444967]
[1737625972148,0.39734729,101710.0,101700.0,0.294967]
[1737625972567,0.49566529,101710.0,101700.0,0.09832]
[1737625972708,0.69230529,101710.0,101690.0,0.700888]
[1737625972911,0.0827,101700.0,101690.0,0.444991]
[1737625973117,0.0827,101700.0,101690.0,0.457511]
[1737625973304,0.1313,101700.0,101690.0,0.444991]
[1737625973528,0.3,101690.0,101680.0,0.098341]
[1737625973755,0.39734729,101690.0,101680.0,0.098341]
[1737625973956,0.49568529,101690.0,101680.0,0.098341]
[1737625974162,0.39734729,101690.0,101680.0,0.098341]
[1737625974788,0.39734729,101690.0,101680.0,0.09849245]
[1737625974996,0.3,101690.0,101680.0,0.29518545]
[1737625977766,0.3,101690.0,101680.0,0.44518545]
[1737625983749,0.39734729,101690.0,101680.0,0.44518545]
[1737625983970,0.32008529,101690.0,101680.0,0.00015145]
[1737625984835,0.32008529,101690.0,101680.0,0.00029395]
[1737625985424,0.22174729,101690.0,101680.0,0.00039395]
[1737625985635,0.522738,101690.0,101680.0,0.09874095]
[1737625986187,0.62008529,101690.0,101680.0,0.00039395]
[1737625986344,0.62008529,101690.0,101680.0,0.09874095]
[1737625986547,0.375,101690.0,101680.0,0.09874095]
[1737625986754,0.473338,101690.0,101680.0,0.09874095]
[1737625987184,0.375,101690.0,101680.0,0.09874095]
[1737625989949,0.473338,101690.0,101680.0,0.09874095]
[1737625990391,0.31618529,101690.0,101680.0,0.00039395]
[1737625990598,0.34701571,101690.0,101680.0,0.00039395]
[1737625991016,0.31618529,101690.0,101680.0,0.00039395]
[1737625992391,0.42727005,101690.0,101680.0,0.00039395]
[1737625992596,0.44727005,101690.0,101680.0,0.00039395]
[1737625993000,0.60027005,101690.0,101680.0,0.00039395]
[1737625993223,0.75027005,101690.0,101680.0,0.00039395]
[1737625993437,0.87918656,101690.0,101680.0,0.00039395]
[1737625993783,0.88429626,101690.0,101680.0,0.00039395]
[1737625994230,0.85272704,101690.0,101680.0,0.00039395]
[1737625994405,0.88429626,101690.0,101680.0,0.00039395]
[1737625994604,0.88429626,101690.0,101680.0,0.00114395]
[1737625994951,0.60537975,101690.0,101680.0,0.00114395]
[1737625995156,0.62537975,101690.0,101680.0,0.00114395]
[1737625995989,0.60237975,101690.0,101680.0,0.00114395]
[1737625999172,0.453167,101660.0,101650.0,0.0101426]
[1737625999389,0.653576,101650.0,101640.0,0.00078559]
[1737625999598,0.653576,101650.0,101640.0,0.00093714]
[1737625999599,0.56200805,101650.0,101640.0,0.00093714]
[1737625999877,0.58200805,101650.0,101640.0,0.00093714]
[1737626000078,0.56200805,101650.0,101640.0,0.00093714]
[1737626000708,0.53900805,101650.0,101640.0,0.00093714]
[1737626000941,0.38900805,101650.0,101640.0,0.00093714]
[1737626001167,0.45544418,101650.0,101640.0,0.00093714]
[1737626001396,0.40900805,101650.0,101640.0,0.00093714]
[1737626002285,0.27792329,101650.0,101640.0,0.00093714]
[1737626003175,0.17954729,101650.0,101640.0,0.09932314]
[1737626003375,0.27792329,101650.0,101640.0,0.00093714]
[1737626004187,0.4506182,101650.0,101640.0,0.00093714]
[1737626005866,0.38900805,101650.0,101640.0,0.00093714]
[1737626007449,0.27792329,101650.0,101640.0,0.00093714]
[1737626007908,0.17954729,101650.0,101640.0,0.09932314]
[1737626009053,0.3,101650.0,101640.0,0.09932314]
[1737626009234,0.3,101650.0,101640.0,0.24932314]
[1737626011792,0.3,101650.0,101640.0,0.26140314]
[1737626012878,0.57166,101660.0,101640.0,0.26140314]
[1737626013078,0.66900729,101660.0,101640.0,0.65493014]
[1737626013235,0.66900729,101660.0,101640.0,0.85169714]
[1737626013836,0.66900729,101660.0,101640.0,0.65493014]
[1737626014231,0.86575229,101660.0,101640.0,0.65493014]
[1737626014383,0.66900729,101660.0,101640.0,0.65493014]
[1737626014753,0.86575329,101660.0,101640.0,0.65493014]
[1737626014960,0.7495727,101660.0,101640.0,0.65493014]
[1737626015157,0.7495727,101660.0,101640.0,0.45816314]
[1737626015365,0.66900729,101660.0,101640.0,0.65493514]
[1737626015645,0.19572329,101650.0,101640.0,0.09932314]
[1737626016053,0.19572329,101650.0,101640.0,0.00093714]
[1737626021100,0.19602275,101650.0,101640.0,0.00093714]
[1737626022386,0.27492275,101650.0,101640.0,0.00093714]
[1737626024835,0.27492275,101650.0,101640.0,0.09932314]
[1737626025061,0.27492275,101650.0,101640.0,0.00093714]
[1737626025269,0.27492275,101650.0,101640.0,0.09932314]
[1737626028669,0.27492275,101650.0,101640.0,0.00093714]
[1737626033042,0.39764675,101650.0,101640.0,0.09932314]
[1737626033241,0.30029946,101650.0,101640.0,0.09932314]
[1737626035061,0.49602275,101650.0,101640.0,0.09932314]
[1737626035967,0.30029946,101650.0,101640.0,0.2104079]
[1737626036171,0.30029946,101650.0,101640.0,0.3604079]
[1737626036419,0.00029946,101650.0,101640.0,0.4355079]
[1737626038430,0.00029946,101650.0,101640.0,0.24932314]
[1737626042020,0.27842275,101650.0,101640.0,0.15093714]
[1737626042602,0.27842275,101650.0,101640.0,0.00093714]
[1737626058061,0.50950751,101650.0,101640.0,0.00093714]
[1737626058481,0.48950751,101650.0,101640.0,0.00093714]
[1737626058695,0.27842275,101650.0,101640.0,0.00093714]
[1737626058902,0.48004675,101650.0,101640.0,0.09932314]
[1737626059081,0.30029946,101650.0,101640.0,0.12893295]
[1737626059530,0.30029946,101650.0,101640.0,0.09932314]
[1737626064080,0.30029946,101650.0,101640.0,0.24932314]
[1737626064943,0.19602275,101650.0,101640.0,0.24932314]
[1737626065515,0.19602275,101650.0,101640.0,0.15093714]
[1737626065772,0.19602275,101650.0,101640.0,0.00093714]
[1737626066980,0.19602275,101650.0,101630.0,0.45266214]
[1737626066981,0.3,101640.0,101630.0,0.45266214]
[1737626067215,0.3786,101640.0,101630.0,0.45276142]
[1737626068090,0.3786,101640.0,101630.0,0.44120142]
[1737626068652,0.27433329,101640.0,101630.0,9.928e-05]
[1737626073432,0.30339057,101640.0,101630.0,9.928e-05]
[1737626074035,0.30335057,101640.0,101630.0,9.928e-05]
[1737626074578,0.27429329,101640.0,101630.0,9.928e-05]
[1737626077244,0.30336142,101640.0,101630.0,9.928e-05]
[1737626078314,0.30336142,101640.0,101630.0,0.09863788]
[1737626078641,0.22510088,101640.0,101630.0,0.09863788]
[1737626078782,0.19603275,101640.0,101630.0,0.09863788]
[1737626079415,0.39868546,101640.0,101630.0,0.09863788]
[1737626079920,0.30029946,101640.0,101630.0,0.09863788]
[1737626080122,0.39868546,101640.0,101630.0,0.09863788]
[1737626081763,0.30029946,101640.0,101630.0,0.09863788]
[1737626082174,0.39868546,101640.0,101630.0,0.09863788]
[1737626083528,0.30029946,101640.0,101630.0,0.09863788]
[1737626084057,0.39868546,101640.0,101630.0,0.09863788]
[1737626084652,0.30029946,101640.0,101630.0,0.09863788]
[1737626084979,0.39868546,101640.0,101630.0,0.09863788]
[1737626085740,0.30029946,101640.0,101630.0,0.09863788]
[1737626089365,0.39868546,101640.0,101630.0,0.09863788]
[1737626089796,0.30029946,101640.0,101630.0,0.09863788]
[1737626090932,0.39868546,101640.0,101630.0,0.09863788]
[1737626091136,0.30029946,101640.0,101630.0,0.09863788]
[1737626092721,0.39868546,101640.0,101630.0,0.09863788]
[1737626093119,0.30029946,101640.0,101630.0,0.09863788]
[1737626093372,0.39868546,101640.0,101630.0,0.09863788]
[1737626095395,0.49603275,101640.0,101630.0,0.00024188]
[1737626095603,0.39868546,101640.0,101630.0,0.00024188]
[1737626097248,0.62353275,101640.0,101630.0,0.00024188]
[1737626097631,0.32353275,101640.0,101630.0,0.00024188]
[1737626097843,0.43461751,101640.0,101630.0,0.00024188]
[1737626098056,0.5319648,101640.0,101630.0,0.00024188]
[1737626098878,0.53706446,101640.0,101630.0,0.00024188]
[1737626099074,0.43971717,101640.0,101630.0,0.00024188]
[1737626099342,0.53971717,101640.0,101630.0,0.00024188]
[1737626101320,0.32863241,101640.0,101630.0,0.00024188]
[1737626101959,0.27503275,101640.0,101630.0,0.00024188]
[1737626102857,0.28013494,101640.0,101630.0,0.00024188]
[1737626103446,0.27978086,101640.0,101630.0,0.00024188]
[1737626104957,0.27467867,101640.0,101630.0,0.09863788]
[1737626106076,0.27467867,101640.0,101630.0,0.00024188]
[1737626108295,0.47634729,101640.0,101630.0,0.09863788]
[1737626108681,0.42724146,101650.0,101630.0,0.49220988]
[1737626108882,0.97175375,101650.0,101630.0,0.29541988]
[1737626109280,0.97175375,101650.0,101630.0,0.49220988]
[1737626109458,0.77498875,101650.0,101630.0,0.49220188]
[1737626109641,0.77498875,101650.0,101630.0,0.59058788]
[1737626109848,0.67764146,101650.0,101640.0,0.098386]
[1737626110054,0.30029946,101650.0,101640.0,0.098386]
[1737626110271,0.30029946,101650.0,101640.0,0.259706]
[1737626110485,0.00029946,101650.0,101640.0,0.259706]
[1737626110725,0.00029946,101650.0,101640.0,0.248386]
[1737626110908,0.00029946,101650.0,101640.0,0.259746]
[1737626112864,0.00029946,101650.0,101640.0,0.306046]
[1737626115463,0.00029946,101650.0,101640.0,0.248346]